bitfinex/quotes_BTCUSD_20241130
["timestamp","ask_amount","ask_price","bid_price","bid_amount"]
[1733007755642,0.00024315,96606.0,96605.0,0.48679365]
[1733007756390,0.00024315,96606.0,96605.0,0.48879365]
[1733007756857,0.00124315,96606.0,96605.0,0.49779365]
[1733007757052,0.00124315,96606.0,96605.0,0.48879365]
[1733007757053,0.00024315,96606.0,96605.0,0.48879365]
[1733007757322,0.00124315,96606.0,96605.0,0.50873028]
[1733007757812,0.00124315,96606.0,96605.0,0.02967107]
[1733007758068,0.00124315,96606.0,96605.0,0.13118507]
[1733007758303,0.00124315,96606.0,96605.0,0.13618507]
[1733007758568,0.00124315,96606.0,96605.0,0.4017169]
[1733007758569,0.00024315,96606.0,96605.0,0.4017169]
[1733007758797,0.00124315,96606.0,96605.0,0.40388507]
[1733007759022,0.00124315,96606.0,96605.0,0.39488507]
[1733007759494,0.00224315,96606.0,96605.0,0.40188507]
[1733007759782,0.00024315,96606.0,96605.0,0.39488507]
[1733007760002,0.00124315,96606.0,96605.0,0.40388507]
[1733007760883,0.00124315,96606.0,96605.0,0.25388507]
[1733007761130,0.00124315,96606.0,96605.0,0.20828507]
[1733007761407,0.00124315,96606.0,96605.0,0.21228507]
[1733007762762,0.00124315,96606.0,96605.0,0.13518507]
[1733007766375,0.00124315,96606.0,96605.0,0.02073444]
[1733007766640,0.20760136,96606.0,96605.0,0.02073444]
[1733007766892,0.24383567,96606.0,96605.0,0.02073444]
[1733007767154,0.24200136,96606.0,96605.0,0.02073444]
[1733007767429,0.24200136,96606.0,96605.0,0.01673444]
[1733007767621,0.24200136,96606.0,96605.0,0.01355126]
[1733007768083,0.24400136,96606.0,96605.0,0.01355126]
[1733007768375,0.24400136,96606.0,96605.0,0.00455126]
[1733007768376,0.00224315,96606.0,96605.0,0.00455126]
[1733007768599,0.00224315,96606.0,96605.0,0.10806526]
[1733007768831,0.00624315,96606.0,96605.0,0.10806526]
[1733007769083,0.00024315,96606.0,96605.0,0.10806526]
[1733007769546,0.00724315,96606.0,96605.0,0.10906526]
[1733007769763,0.00024315,96606.0,96605.0,0.10806526]
[1733007770243,0.00024315,96606.0,96605.0,0.11006526]
[1733007770470,0.00424315,96606.0,96605.0,0.11006526]
[1733007771134,0.00024315,96606.0,96605.0,0.11006526]
[1733007771354,0.00024315,96606.0,96605.0,0.11106526]
[1733007771588,0.00024315,96606.0,96605.0,0.106514]
[1733007773363,0.00024315,96606.0,96605.0,0.103514]
[1733007773804,0.00124315,96606.0,96605.0,0.103514]
[1733007774256,0.00024315,96606.0,96605.0,0.103514]
[1733007774894,0.00024315,96606.0,96605.0,0.181814]
[1733007775176,0.00024315,96606.0,96605.0,0.182814]
[1733007775399,0.00024315,96606.0,96605.0,0.184814]
[1733007776059,0.00024315,96606.0,96605.0,0.182814]
[1733007776273,0.00024315,96606.0,96605.0,0.186814]
[1733007776493,0.00024315,96606.0,96605.0,0.185814]
[1733007776714,0.00024315,96606.0,96605.0,0.18364594]
[1733007776938,0.00024315,96606.0,96605.0,0.18464594]
[1733007777391,0.00024315,96606.0,96605.0,0.18364594]
[1733007778033,0.00024315,96606.0,96605.0,0.18964594]
[1733007778306,0.00024315,96606.0,96605.0,0.23324594]
[1733007778519,0.00024315,96606.0,96605.0,0.51277124]
[1733007779174,0.00024315,96606.0,96605.0,0.235414]
[1733007779864,0.001728,96608.0,96607.0,0.181612]
[1733007780082,0.001728,96608.0,96607.0,0.6399761]
[1733007780348,0.001728,96608.0,96607.0,0.63814435]
[1733007780577,0.001728,96608.0,96607.0,0.377212]
[1733007781249,0.001728,96608.0,96607.0,0.379212]
[1733007781974,0.001728,96608.0,96607.0,0.382212]
[1733007782661,0.001728,96608.0,96607.0,0.377212]
[1733007782851,0.001728,96608.0,96607.0,0.383212]
[1733007785060,0.001728,96608.0,96607.0,0.39402308]
[1733007785299,0.001728,96608.0,96607.0,0.49686829]
[1733007785747,0.001728,96608.0,96607.0,0.49486829]
[1733007785938,0.001728,96608.0,96607.0,0.49686829]
[1733007786431,0.001728,96608.0,96607.0,0.49486829]
[1733007786884,0.001728,96608.0,96607.0,0.49686829]
[1733007788028,0.001728,96608.0,96607.0,0.19842308]
[1733007788487,0.001728,96608.0,96607.0,0.20025497]
[1733007788939,0.001728,96608.0,96607.0,0.19825497]
[1733007789162,0.001728,96608.0,96607.0,0.19425497]
[1733007789386,0.001728,96608.0,96607.0,0.19525497]
[1733007789857,0.001728,96608.0,96607.0,0.19725497]
[1733007790078,0.001728,96608.0,96607.0,0.19925497]
[1733007791031,0.001728,96608.0,96607.0,0.19442308]
[1733007791280,0.001728,96608.0,96607.0,0.19425498]
[1733007791475,0.001728,96608.0,96607.0,0.19725498]
[1733007791731,0.001728,96608.0,96607.0,0.19242308]
[1733007791949,0.001728,96608.0,96607.0,0.19642308]
[1733007792394,0.001728,96608.0,96607.0,0.19242308]
[1733007792633,0.001728,96608.0,96607.0,0.19842308]
[1733007792856,0.001728,96608.0,96607.0,0.19625498]
[1733007793079,0.001728,96608.0,96607.0,0.60564688]
[1733007793298,0.001728,96608.0,96607.0,0.19442308]
[1733007793533,0.001728,96608.0,96607.0,0.24185497]
[1733007793753,0.001728,96608.0,96607.0,0.49286829]
[1733007794184,0.001728,96608.0,96607.0,0.49686829]
[1733007798225,0.001728,96608.0,96607.0,0.51986829]
[1733007798673,0.001728,96608.0,96607.0,0.55184419]
[1733007800068,0.001728,96608.0,96607.0,0.39402308]
[1733007800324,0.001728,96608.0,96607.0,0.12032308]
[1733007801664,0.001728,96608.0,96607.0,0.11832308]
[1733007801889,0.001728,96608.0,96607.0,0.12032308]
[1733007802343,0.001728,96608.0,96607.0,0.11832308]
[1733007803006,0.001728,96608.0,96607.0,0.12032308]
[1733007803724,0.001728,96608.0,96607.0,0.53207806]
[1733007804172,0.001728,96608.0,96607.0,0.12032308]
[1733007804855,0.001728,96608.0,96607.0,0.53210071]
[1733007805075,0.001728,96608.0,96607.0,0.12032308]
[1733007805776,0.001728,96608.0,96607.0,0.53393262]
[1733007805968,0.001728,96608.0,96607.0,0.12032308]
[1733007806227,0.001728,96608.0,96607.0,0.53210071]
[1733007806694,0.001728,96608.0,96607.0,0.49706829]
[1733007806939,0.001728,96608.0,96607.0,0.52907006]
[1733007811033,0.001728,96608.0,96607.0,0.52507006]
[1733007811320,0.001728,96624.0,96607.0,0.52507006]
[1733007811321,0.001728,96624.0,96616.0,0.217004]
[1733007811565,0.001728,96624.0,96623.0,0.381395]
[1733007812048,0.001728,96624.0,96623.0,0.103495]
[1733007812295,0.001728,96624.0,96623.0,0.51504234]
[1733007812525,0.001728,96624.0,96623.0,0.103495]
[1733007812763,0.001728,96624.0,96623.0,0.38322648]
[1733007812991,0.001728,96624.0,96623.0,0.381395]
[1733007813744,0.001728,96624.0,96623.0,0.231395]
[1733007813982,0.001728,96624.0,96623.0,0.106495]
[1733007814440,0.001728,96624.0,96623.0,0.107495]
[1733007814899,0.001728,96624.0,96623.0,0.003]
[1733007815144,0.105221,96624.0,96623.0,0.28179228]
[1733007815362,0.105221,96624.0,96623.0,0.004]
[1733007815363,0.001728,96624.0,96623.0,0.004]
[1733007815811,0.001728,96624.0,96623.0,0.2788101]
[1733007816028,0.002728,96624.0,96622.0,0.2788101]
[1733007816498,0.106221,96624.0,96623.0,0.2788101]
[1733007816722,0.002728,96624.0,96623.0,0.3823051]
[1733007817167,0.002728,96624.0,96623.0,0.183595]
[1733007817407,0.001728,96624.0,96623.0,0.18542656]
[1733007817634,0.001728,96624.0,96623.0,0.33542656]
[1733007817854,0.002728,96624.0,96623.0,0.333595]
[1733007818283,0.001728,96624.0,96623.0,0.335595]
[1733007818538,0.001728,96624.0,96623.0,0.334595]
[1733007818750,0.001728,96624.0,96623.0,0.337595]
[1733007821800,0.001728,96624.0,96623.0,0.107495]
[1733007822731,0.001728,96624.0,96623.0,0.10932666]
[1733007822972,0.001728,96624.0,96623.0,0.257495]
[1733007824129,0.001728,96624.0,96623.0,0.256495]
[1733007824354,0.001728,96624.0,96623.0,0.254495]
[1733007824807,0.001728,96624.0,96623.0,0.256495]
[1733007825057,0.001728,96624.0,96623.0,0.253495]
[1733007825280,0.001728,96624.0,96623.0,0.254495]
[1733007826440,0.001728,96624.0,96623.0,0.257495]
[1733007826889,0.001728,96624.0,96623.0,0.004]
[1733007827119,0.105221,96624.0,96623.0,0.28290444]
[1733007827339,0.105221,96624.0,96623.0,0.004]
[1733007827565,0.001728,96624.0,96623.0,0.004]
[1733007827778,0.001728,96624.0,96622.0,0.103495]
[1733007828023,0.002728,96624.0,96620.0,0.27890444]
[1733007828234,0.003728,96624.0,96621.0,0.206994]
[1733007828455,0.001728,96624.0,96620.0,0.38240244]
[1733007828693,0.001728,96624.0,96620.0,0.27890444]
[1733007828910,0.001728,96624.0,96621.0,0.27890444]
[1733007829141,0.002728,96624.0,96623.0,0.103495]
[1733007829368,0.003728,96624.0,96623.0,0.2310266]
[1733007829585,0.003728,96624.0,96623.0,0.229195]
[1733007829817,0.002728,96624.0,96623.0,0.229195]
[1733007830698,0.001728,96624.0,96623.0,0.229195]
[1733007831130,0.002728,96624.0,96623.0,0.229195]
[1733007831371,0.002728,96624.0,96623.0,0.64086414]
[1733007831581,0.001728,96624.0,96623.0,0.64086414]
[1733007831826,0.001728,96624.0,96623.0,0.64486414]
[1733007835861,0.001728,96624.0,96623.0,0.107495]
[1733007837168,0.105221,96624.0,96623.0,0.004]
[1733007837896,0.001728,96624.0,96623.0,0.004]
[1733007838141,0.001728,96624.0,96621.0,0.27893749]
[1733007838364,0.103496,96622.0,96621.0,0.27893749]
[1733007838856,0.001728,96624.0,96621.0,0.27893749]
[1733007839093,0.105222,96624.0,96621.0,0.27893749]
[1733007839320,0.107222,96624.0,96621.0,0.27893749]
[1733007839541,0.105222,96624.0,96621.0,0.27893749]
[1733007839775,0.103495,96623.0,96621.0,0.27893749]
[1733007840216,0.103496,96622.0,96621.0,0.27893749]
[1733007840687,0.00356231,96624.0,96615.0,0.27893749]
[1733007840904,0.20882431,96623.0,96613.0,0.27893749]
[1733007841112,0.103504,96614.0,96613.0,0.27893749]
[1733007841594,0.0657,96613.0,96607.0,0.27980119]
[1733007841819,0.0657,96613.0,96607.0,0.0008637]
[1733007841820,0.137911,96608.0,96607.0,0.0008637]
[1733007842056,0.103512,96607.0,96605.0,0.00092285]
[1733007842285,0.20819152,96607.0,96605.0,0.00092285]
[1733007842969,0.20819152,96607.0,96576.0,0.0829]
[1733007842970,0.103532,96589.0,96584.0,0.27893749]
[1733007843204,0.207047,96596.0,96584.0,0.27893749]
[1733007843420,0.0657,96605.0,96579.0,5.956e-05]
[1733007843421,0.103531,96589.0,96583.0,0.27893749]
[1733007843635,0.103531,96589.0,96583.0,0.103537]
[1733007843884,0.103533,96588.0,96580.0,0.27893749]
[1733007844115,0.103533,96588.0,96582.0,0.103538]
[1733007844306,0.00183431,96599.0,96581.0,0.48601749]
[1733007844521,0.10353,96591.0,96583.0,0.103536]
[1733007844744,0.10353,96591.0,96584.0,0.103536]
[1733007844970,0.00183431,96595.0,96584.0,0.103536]
[1733007845186,0.207054,96593.0,96584.0,0.103536]
[1733007845435,0.207054,96593.0,96579.0,0.48608005]
[1733007845436,0.207043,96598.0,96588.0,0.103532]
[1733007845652,0.103525,96595.0,96589.0,0.103531]
[1733007846330,0.103525,96595.0,96590.0,0.0829]
[1733007846331,0.004,96595.0,96590.0,0.0829]
[1733007846565,0.004,96595.0,96594.0,0.103526]
[1733007846779,0.207036,96602.0,96594.0,0.103526]
[1733007846973,0.002,96595.0,96594.0,0.103526]
[1733007847229,0.002,96595.0,96590.0,0.0829]
[1733007847230,0.004,96595.0,96592.0,0.103528]
[1733007847448,0.004,96595.0,96590.0,0.0829]
[1733007847672,0.002,96595.0,96592.0,0.103527]
[1733007847899,0.002,96595.0,96591.0,0.103528]
[1733007848120,0.002,96595.0,96592.0,0.103527]
[1733007848358,0.00483431,96602.0,96590.0,0.0829]
[1733007848575,0.001,96595.0,96592.0,0.103528]
[1733007848801,0.10352,96599.0,96592.0,0.103528]
[1733007849024,0.207041,96599.0,96587.0,0.01117157]
[1733007849251,0.001,96595.0,96587.0,0.11470457]
[1733007849470,0.103524,96596.0,96589.0,0.10353]
[1733007849659,0.001,96595.0,96589.0,0.10353]
[1733007850131,0.18521029,96663.0,96589.0,0.10353]
[1733007850349,0.103526,96594.0,96589.0,0.10353]
[1733007850571,0.001,96595.0,96590.0,0.103529]
[1733007850789,0.001,96595.0,96590.0,0.10353]
[1733007851005,0.001,96595.0,96591.0,0.103529]
[1733007851229,0.001,96595.0,96594.0,0.103526]
[1733007851447,0.206997,96620.0,96594.0,0.103526]
[1733007851448,0.003,96599.0,96598.0,0.103521]
[1733007851746,0.207002,96618.0,96597.0,0.207045]
[1733007851966,0.20634821,96615.0,96596.0,0.103523]
[1733007852182,0.10284521,96615.0,96596.0,0.00183217]
[1733007852620,0.103508,96611.0,96606.0,0.103512]
[1733007852844,0.208713,96625.0,96596.0,0.00183217]
[1733007852845,0.001728,96624.0,96600.0,0.12342941]
[1733007853071,0.001728,96624.0,96619.0,0.206997]
[1733007853536,0.001728,96624.0,96621.0,0.103496]
[1733007854194,0.001728,96624.0,96620.0,0.103498]
[1733007854414,0.0017276,96622.0,96620.0,0.103498]
[1733007854653,0.0017276,96622.0,96621.0,0.103497]
[1733007855539,0.0017276,96622.0,96619.0,0.206998]
[1733007855756,0.0017276,96622.0,96621.0,0.103497]
[1733007856196,0.0037276,96622.0,96621.0,0.103497]
[1733007856415,0.0017276,96622.0,96621.0,0.103497]
[1733007856868,0.0037276,96622.0,96621.0,0.103497]
[1733007857081,0.0037276,96622.0,96620.0,0.01093574]
[1733007857295,0.0017276,96622.0,96621.0,0.103497]
[1733007857706,0.0057276,96622.0,96621.0,0.103497]
[1733007857916,0.0037276,96622.0,96621.0,0.103497]
[1733007858359,0.0057276,96622.0,96621.0,0.103497]
[1733007858567,0.0037276,96622.0,96621.0,0.235197]
[1733007858984,0.0027276,96622.0,96621.0,0.235197]
[1733007859413,0.0037276,96622.0,96621.0,0.235197]
[1733007860101,0.0027276,96622.0,96621.0,0.235197]
[1733007860760,0.0017276,96622.0,96621.0,0.235197]
[1733007868507,0.0017276,96622.0,96621.0,0.1317]
[1733007868749,0.0017276,96622.0,96621.0,0.103497]
[1733007871798,0.0017276,96622.0,96618.0,0.01102765]
[1733007872222,0.0017276,96622.0,96618.0,0.207]
[1733007872459,0.0017276,96622.0,96620.0,0.103497]
[1733007873346,0.0017276,96622.0,96617.0,0.0781]
[1733007873586,0.0017276,96622.0,96617.0,0.1816]
[1733007873804,0.0017276,96622.0,96617.0,0.181601]
[1733007874012,0.0017276,96622.0,96621.0,0.103497]
[1733007874225,0.0017276,96622.0,96619.0,0.103498]
[1733007874437,0.0017276,96622.0,96619.0,0.206998]
[1733007874682,0.0017276,96622.0,96619.0,0.103498]
[1733007874893,0.0017276,96622.0,96617.0,0.0781]
[1733007875315,0.103499,96620.0,96612.0,0.207013]
[1733007875524,0.0037276,96622.0,96611.0,0.1272]
[1733007875731,0.1072236,96622.0,96616.0,0.103501]
[1733007875952,0.1062236,96622.0,96616.0,0.103501]
[1733007876206,0.0027276,96622.0,96613.0,0.207011]
[1733007876427,0.0027276,96622.0,96611.0,0.13818125]
[1733007876648,0.2087196,96622.0,96611.0,0.13818125]
[1733007876869,0.0017276,96622.0,96611.0,0.13818125]
[1733007877079,0.103497,96621.0,96611.0,0.13818125]
[1733007877339,0.0017276,96622.0,96619.0,0.103498]
[1733007877578,0.0017276,96622.0,96619.0,0.103499]
[1733007878022,0.0017276,96622.0,96616.0,0.207005]
[1733007878224,0.0017276,96622.0,96618.0,0.1035]
[1733007878435,0.0017276,96622.0,96616.0,0.207005]
[1733007878645,0.0017276,96622.0,96619.0,0.103498]
[1733007879291,0.0017276,96622.0,96611.0,0.41636318]
[1733007879515,0.103499,96619.0,96613.0,0.103505]
[1733007879769,0.2087206,96622.0,96611.0,0.41636318]
[1733007879770,0.0017276,96622.0,96611.0,0.41636318]
[1733007879967,0.0017276,96622.0,96617.0,0.207001]
[1733007880379,0.0017276,96622.0,96614.0,0.207009]
[1733007881023,0.0017276,96622.0,96617.0,0.207002]
[1733007881250,0.0017276,96622.0,96619.0,0.103498]
[1733007881465,0.0017276,96622.0,96619.0,0.103499]
[1733007882136,0.0017276,96622.0,96615.0,0.207007]
[1733007882418,0.0017276,96622.0,96617.0,0.207002]
[1733007882634,0.0017276,96622.0,96619.0,0.103498]
[1733007883069,0.0017276,96622.0,96618.0,0.1035]
[1733007883282,0.0017276,96622.0,96613.0,0.207011]
[1733007883497,0.0017276,96622.0,96619.0,0.103498]
[1733007884372,0.0027276,96622.0,96619.0,0.103498]
[1733007885026,0.0037276,96622.0,96619.0,0.103498]
[1733007885462,0.0037276,96622.0,96615.0,0.0758]
[1733007885676,0.0037276,96622.0,96616.0,0.207005]
[1733007886104,0.0037276,96622.0,96618.0,0.1035]
[1733007886401,0.0027276,96622.0,96615.0,0.0758]
[1733007886611,0.0037276,96622.0,96618.0,0.207]
[1733007886829,0.0017276,96622.0,96615.0,0.0758]
[1733007887035,0.0027276,96622.0,96619.0,0.103498]
[1733007887251,0.0027276,96622.0,96615.0,0.0758]
[1733007887252,0.0037276,96622.0,96615.0,0.0758]
[1733007887466,0.0017276,96622.0,96616.0,0.103502]
[1733007887705,0.0017276,96622.0,96617.0,0.207002]
[1733007887930,0.0037276,96622.0,96619.0,0.103498]
[1733007888157,0.0027276,96622.0,96618.0,0.207]
[1733007888385,0.0017276,96622.0,96620.0,0.103497]
[1733007888611,0.0027276,96622.0,96619.0,0.103498]
[1733007888837,0.0027276,96622.0,96618.0,0.207]
[1733007889081,0.0027276,96622.0,96618.0,0.310499]
[1733007889303,0.0027276,96622.0,96619.0,0.103498]
[1733007889520,0.0037276,96622.0,96619.0,0.103498]
[1733007889733,0.0027276,96622.0,96619.0,0.103498]
[1733007889937,0.0017276,96622.0,96619.0,0.103498]
[1733007890143,0.0027276,96622.0,96615.0,0.0758]
[1733007890364,0.0017276,96622.0,96615.0,0.0758]
[1733007890579,0.0037276,96622.0,96621.0,0.103497]
[1733007890784,0.0037276,96622.0,96621.0,0.150097]
[1733007890993,0.0027276,96622.0,96621.0,0.150097]
[1733007891213,0.0037276,96622.0,96621.0,0.150097]
[1733007891406,0.0027276,96622.0,96621.0,0.150097]
[1733007891860,0.0017276,96622.0,96621.0,0.150097]
[1733007892946,0.0027276,96622.0,96621.0,0.150097]
[1733007893377,0.0037276,96622.0,96621.0,0.150097]
[1733007894708,0.0037276,96622.0,96621.0,0.15192868]
[1733007894925,0.0037276,96622.0,96621.0,0.22772868]
[1733007895151,0.0037276,96622.0,96621.0,0.225897]
[1733007895373,0.0027276,96622.0,96621.0,0.225897]
[1733007895753,0.0017276,96622.0,96621.0,0.225897]
[1733007895974,0.0017276,96622.0,96621.0,0.23674739]
[1733007896300,0.0017276,96622.0,96621.0,0.23774739]
[1733007897595,0.0017276,96622.0,96621.0,0.3405926]
[1733007897777,0.0017276,96622.0,96621.0,0.37263878]
[1733007899934,0.0017276,96622.0,96621.0,0.37163878]
[1733007900156,0.0017276,96622.0,96621.0,0.37763878]
[1733007901437,0.0017276,96622.0,96621.0,0.3455926]
[1733007908081,0.0017276,96622.0,96621.0,0.24274739]
[1733007909902,0.1052236,96622.0,96621.0,0.01685039]
[1733007910124,0.0017276,96622.0,96621.0,0.233197]
[1733007910543,0.0017276,96622.0,96621.0,0.231197]
[1733007910981,0.0017276,96622.0,96621.0,0.34117555]
[1733007911203,0.0017276,96622.0,96621.0,0.49117555]
[1733007911414,0.0017276,96622.0,96621.0,0.52617031]
[1733007911626,0.0017276,96622.0,96621.0,0.52517031]
[1733007911850,0.0017276,96622.0,96621.0,0.49717555]
[1733007912067,0.0017276,96622.0,96621.0,0.39433034]
[1733007913938,0.0017276,96622.0,96621.0,0.14083334]
[1733007914152,0.0017276,96622.0,96621.0,0.12063034]
[1733007915030,0.0017276,96622.0,96621.0,0.11863034]
[1733007915280,0.0017276,96622.0,96621.0,0.11463034]
[1733007915517,0.0017276,96622.0,96621.0,0.11563034]
[1733007915980,0.0017276,96622.0,96621.0,0.29630723]
[1733007916200,0.0017276,96622.0,96621.0,0.34217555]
[1733007916621,0.0017276,96622.0,96621.0,0.34117555]
[1733007917505,0.0017276,96622.0,96621.0,0.34317555]
[1733007917712,0.0017276,96622.0,96621.0,0.34517555]
[1733007917922,0.0017276,96622.0,96621.0,0.34317555]
[1733007918336,0.0017276,96622.0,96621.0,0.34717555]
[1733007918760,0.0017276,96622.0,96621.0,0.34833055]
[1733007923013,0.0017276,96622.0,96621.0,0.53033497]
[1733007923222,0.0017276,96622.0,96621.0,0.49833055]
[1733007923433,0.0017276,96622.0,96621.0,0.53033224]
[1733007932039,0.0017276,96622.0,96621.0,0.53317741]
[1733007933428,0.0017276,96622.0,96621.0,0.52204407]
[1733007936879,0.0017276,96622.0,96621.0,0.26919886]
[1733007937099,0.0017276,96622.0,96621.0,0.14549886]
[1733007937301,0.0017276,96622.0,96621.0,0.11532878]
[1733007937659,0.0017276,96622.0,96621.0,0.11032878]
[1733007937879,0.0017276,96622.0,96621.0,0.10849717]
[1733007938268,0.0017276,96622.0,96621.0,0.02131509]
[1733007938484,0.0017276,96622.0,96621.0,0.52542779]
[1733007938673,0.0017276,96622.0,96621.0,0.42193079]
[1733007938885,0.0017276,96622.0,96621.0,0.00800017]
[1733007939054,0.0017276,96622.0,96621.0,0.11149717]
[1733007939761,0.0017276,96622.0,96621.0,0.00800017]
[1733007939982,0.0017276,96622.0,96621.0,0.00900017]
[1733007940210,0.0017276,96622.0,96621.0,0.00500017]
[1733007940483,0.0017276,96622.0,96621.0,0.00700017]
[1733007940707,0.0017276,96622.0,96621.0,0.00500017]
[1733007940911,0.0017276,96622.0,96621.0,0.00600017]
[1733007941377,0.0017276,96622.0,96621.0,0.00500017]
[1733007942460,0.0017276,96622.0,96621.0,0.00600017]
[1733007944729,0.1052236,96622.0,96621.0,0.00600017]
[1733007945347,0.14145791,96622.0,96621.0,0.00600017]
[1733007945547,0.14145791,96622.0,96621.0,0.00500017]
[1733007945760,0.24430312,96622.0,96621.0,0.00500017]
[1733007945921,0.24246881,96622.0,96621.0,0.002155]
[1733007946920,0.24246881,96622.0,96621.0,0.001155]
[1733007947118,0.24246881,96622.0,96621.0,0.002155]
[1733007947318,0.24246881,96622.0,96621.0,0.001155]
[1733007947528,0.24646881,96622.0,96621.0,0.001155]
[1733007947723,0.24946881,96622.0,96621.0,0.001155]
[1733007948573,0.1122236,96622.0,96621.0,0.001155]
[1733007950070,0.1092236,96622.0,96621.0,0.001155]
[1733007950265,0.1122236,96622.0,96621.0,0.001155]
[1733007950484,0.1052236,96622.0,96621.0,0.001155]
[1733007950701,0.1082236,96622.0,96621.0,0.001155]
[1733007950911,0.1112236,96622.0,96621.0,0.001155]
[1733007951251,0.1082236,96622.0,96621.0,0.001155]
[1733007952091,0.1112236,96622.0,96621.0,0.001155]
[1733007953318,0.0077276,96622.0,96621.0,0.001155]
[1733007953523,0.1112236,96622.0,96621.0,0.001155]
[1733007953738,0.1112236,96622.0,96621.0,0.00362052]
[1733007953942,0.1112236,96622.0,96621.0,0.001155]
[1733007954056,0.1052236,96622.0,96621.0,0.001155]
[1733007954288,0.1082236,96622.0,96621.0,0.001155]
[1733007954489,0.1112236,96622.0,96621.0,0.001155]
[1733007954691,0.1082236,96622.0,96621.0,0.001155]
[1733007955330,0.11005791,96622.0,96621.0,0.001155]
[1733007955737,0.11205791,96622.0,96621.0,0.001155]
[1733007956210,0.10905791,96622.0,96621.0,0.001155]
[1733007956682,0.11205791,96622.0,96621.0,0.001155]
[1733007956873,0.10905791,96622.0,96621.0,0.001155]
[1733007957176,0.11005791,96622.0,96621.0,0.001155]
[1733007957386,0.11205791,96622.0,96621.0,0.001155]
[1733007958225,0.11205791,96622.0,96621.0,0.0028826]
[1733007959583,0.0067276,96622.0,96621.0,0.0855826]
[1733007959790,0.0067276,96622.0,96621.0,0.08805086]
[1733007960900,0.0047276,96622.0,96621.0,0.08805086]
[1733007961110,0.0067276,96622.0,96621.0,0.19154786]
[1733007961568,0.0037276,96622.0,96621.0,0.19154786]
[1733007962830,0.0057276,96622.0,96621.0,0.13745086]
[1733007963041,0.0037276,96622.0,96621.0,0.24094786]
[1733007963288,0.0017276,96622.0,96621.0,0.24094786]
[1733007964460,0.14132022,96622.0,96621.0,0.24094786]
[1733007965264,0.14132022,96622.0,96621.0,0.13745086]
[1733007965471,0.14132022,96622.0,96621.0,0.00535086]
[1733007966485,0.14632022,96622.0,96621.0,0.00535086]
[1733007966952,0.14332022,96622.0,96621.0,0.00535086]
[1733007967361,0.14532022,96622.0,96621.0,0.00535086]
[1733007967479,0.14332022,96622.0,96621.0,0.00535086]
[1733007967896,0.14132022,96622.0,96621.0,0.00535086]
[1733007968325,0.14332022,96622.0,96621.0,0.00535086]
[1733007968789,0.14332022,96622.0,96621.0,0.23654786]
[1733007969223,0.14532022,96622.0,96621.0,0.23654786]
[1733007969694,0.14332022,96622.0,96621.0,0.23654786]
[1733007969895,0.14132022,96622.0,96621.0,0.23654786]
[1733007970102,0.14132022,96622.0,96621.0,0.23754786]
[1733007970513,0.14132022,96622.0,96621.0,0.23854786]
[1733007970730,0.14132022,96622.0,96621.0,0.23654786]
[1733007970929,0.14132022,96622.0,96621.0,0.23754786]
[1733007971142,0.14132022,96622.0,96621.0,0.24054786]
[1733007971503,0.14132022,96622.0,96621.0,0.51906485]
[1733007974261,0.14132022,96622.0,96621.0,0.24054786]
[1733007975115,0.14132022,96622.0,96621.0,0.25139471]
[1733007978884,0.14132022,96622.0,96621.0,0.91548767]
[1733007979117,0.14132022,96622.0,96621.0,0.50423992]
[1733007990623,0.14132022,96622.0,96621.0,0.40074292]
[1733007993517,0.14132022,96622.0,96621.0,0.43273098]
[1733007995510,0.14132022,96622.0,96621.0,0.42188413]
[1733007996358,0.14132022,96622.0,96621.0,0.41888413]
[1733007996601,0.14132022,96622.0,96621.0,0.42688413]
[1733007997056,0.14132022,96622.0,96621.0,0.43288413]
[1733007997290,0.12173378,96622.0,96621.0,0.44288413]
[1733008003786,0.12259758,96622.0,96621.0,0.44288413]
[1733008005336,0.11671901,96622.0,96621.0,0.44288413]
[1733008006145,0.11671901,96622.0,96621.0,0.45384558]
[1733008006364,0.0017258,96648.0,96635.0,0.206963]
[1733008006595,0.00181209,96648.0,96646.0,0.42865967]
[1733008006795,0.00181209,96648.0,96647.0,0.05123108]
[1733008006992,0.00181209,96648.0,96647.0,0.05361874]
[1733008007199,0.00181209,96648.0,96647.0,0.20361874]
[1733008007611,0.00281209,96648.0,96647.0,0.20361874]
[1733008008436,0.00281209,96648.0,96647.0,0.05361874]
[1733008008848,0.00181209,96648.0,96647.0,0.00421874]
[1733008010124,0.00181209,96648.0,96647.0,0.00521874]
[1733008010333,0.00181209,96648.0,96647.0,0.00338766]
[1733008011171,0.00181209,96648.0,96647.0,0.01447612]
[1733008011363,0.00181209,96648.0,96647.0,0.00338766]
[1733008012431,0.00181209,96648.0,96647.0,0.00238766]
[1733008013745,0.00281209,96648.0,96647.0,0.00238766]
[1733008015913,0.00281209,96648.0,96647.0,0.30446395]
[1733008016196,0.00281209,96648.0,96647.0,0.38093287]
[1733008018025,0.00281209,96648.0,96647.0,0.00238766]
[1733008018244,0.00181209,96648.0,96647.0,0.00238766]
[1733008019089,0.00181209,96648.0,96647.0,0.00338766]
[1733008020174,0.00381209,96648.0,96647.0,0.00338766]
[1733008020653,0.00381209,96648.0,96647.0,0.00238766]
[1733008021357,0.00181209,96648.0,96647.0,0.00238766]
[1733008021580,0.00281209,96648.0,96647.0,0.00238766]
[1733008022024,0.00181209,96648.0,96647.0,0.00238766]
[1733008022438,0.00381209,96648.0,96647.0,0.00238766]
[1733008022850,0.00181209,96648.0,96647.0,0.00238766]
[1733008022992,0.00381209,96648.0,96647.0,0.00238766]
[1733008026002,0.10391209,96648.0,96647.0,0.00238766]
[1733008028532,0.06951209,96648.0,96647.0,0.00238766]
[1733008028746,0.00381209,96648.0,96647.0,0.00238766]
[1733008031422,0.00381209,96648.0,96647.0,0.05151897]
[1733008031685,0.00381209,96648.0,96647.0,0.04968766]
[1733008031907,0.00381209,96648.0,96647.0,0.05151885]
[1733008032340,0.00181209,96648.0,96647.0,0.04968766]
[1733008032989,0.00181209,96648.0,96647.0,0.05068766]
[1733008033387,0.00181209,96648.0,96647.0,0.05251885]
[1733008033592,0.00181209,96648.0,96647.0,0.05068766]
[1733008034010,0.00181209,96648.0,96647.0,0.30536406]
[1733008034222,0.00181209,96648.0,96647.0,0.38263287]
[1733008042271,0.00181209,96648.0,96647.0,0.38163287]
[1733008042706,0.00181209,96648.0,96647.0,0.38263287]
[1733008042955,0.00181209,96648.0,96647.0,0.38163287]
[1733008043199,0.00181209,96648.0,96647.0,0.38763287]